bitfinex-derivatives/quotes_SOLF0:USTF0_20250125
["timestamp","ask_amount","ask_price","bid_price","bid_amount"]
[1737773396290,4.0241786,250.21,250.15,0.02937454]
[1737773396487,0.0272786,250.21,250.15,0.02937454]
[1737773398097,3.9971,250.19,250.15,0.02937454]
[1737773398797,0.0272786,250.21,250.15,0.02937454]
[1737773398999,3.9973,250.18,250.15,0.02937454]
[1737773401399,0.0272786,250.21,250.15,0.02937454]
[1737773402096,0.0272786,250.21,250.15,1.37157454]
[1737773403502,0.0272786,250.21,250.16,1.3035]
[1737773411197,3.9972,250.19,250.15,0.02937454]
[1737773411401,0.0272786,250.21,250.15,0.02937454]
[1737773411800,3.9975,250.17,250.15,0.02937454]
[1737773412601,3.9971,250.19,250.15,0.02937454]
[1737773412797,0.0272786,250.21,250.15,0.02937454]
[1737773415503,3.997,250.2,250.15,0.02937454]
[1737773415907,0.0272786,250.21,250.15,0.02937454]
[1737773416106,3.9975,250.17,250.15,0.02937454]
[1737773419913,3.9983,250.12,250.02,201.98491544]
[1737773420113,9.98491544,250.19,250.02,201.98491544]
[1737773420304,0.2587,250.21,250.02,192.0]
[1737773420305,9.98491544,250.15,250.02,192.0]
[1737773420607,3.9986,250.1,250.02,192.0]
[1737773420808,9.98491544,250.19,250.02,201.98491544]
[1737773421310,0.02554361,250.13,250.08,0.02750575]
[1737773422009,4.02364361,250.13,250.08,0.02750575]
[1737773422209,0.02554361,250.13,250.08,0.02750575]
[1737773422514,3.9984,250.11,250.08,0.02750575]
[1737773422811,4.02374361,250.13,250.08,0.02750575]
[1737773423011,0.02554361,250.13,250.08,0.02750575]
[1737773424111,3.9983,250.12,250.08,0.02750575]
[1737773427117,3.9987,250.09,250.08,0.02750575]
[1737773427822,10.38959502,250.09,250.08,0.02750575]
[1737773429721,3.9987,250.09,250.08,0.02750575]
[1737773431621,3.9999,250.02,249.95,12.57112739]
[1737773432023,3.9999,250.02,249.95,2.5861]
[1737773432424,3.9999,250.02,249.95,1.2602]
[1737773432625,0.02742976,250.01,249.96,0.0273669]
[1737773432828,4.02742976,250.01,249.96,0.0273669]
[1737773434424,0.02742976,250.01,249.96,0.0273669]
[1737773434627,1.3278,250.11,250.0,4.0001]
[1737773435023,3.9994,250.05,249.96,1.393]
[1737773435425,1.3278,250.11,249.98,4.0003]
[1737773435725,3.9997,250.03,250.02,0.0260148]
[1737773436925,0.02668426,250.07,250.02,0.0260148]
[1737773437126,3.9995,250.05,250.02,0.0260148]
[1737773437328,0.02668426,250.07,250.02,0.0260148]
[1737773440127,3.9993,250.06,250.02,0.0260148]
[1737773440720,0.02668426,250.07,250.02,0.0260148]
[1737773441626,0.02668426,250.07,250.02,4.0258148]
[1737773442730,0.02668426,250.07,250.03,3.9997]
[1737773443127,9.98502739,250.17,250.03,9.98502739]
[1737773443729,9.98502739,250.21,250.03,9.98502739]
[1737773444034,9.98502739,250.21,250.04,1.2571]
[1737773444432,0.02888557,250.15,250.1,0.02781475]
[1737773444935,0.02888557,250.15,250.1,4.02631475]
[1737773445427,0.02888557,250.15,250.1,0.02781475]
[1737773445634,0.02888557,250.15,250.11,3.9984]
[1737773445828,0.02888557,250.15,250.1,0.02781475]
[1737773447532,3.9981,250.13,250.1,0.02781475]
[1737773449732,0.02888557,250.15,250.1,0.02781475]
[1737773450039,3.998,250.14,250.1,0.02781475]
[1737773451936,0.02888557,250.15,250.1,4.02631475]
[1737773453239,4.02668557,250.15,250.1,4.02631475]
[1737773458545,0.02888557,250.15,250.1,4.02631475]
[1737773461947,0.02888557,250.15,250.11,3.9983]
[1737773462146,0.02888557,250.15,250.11,10.38329058]
[1737773463243,0.02888557,250.15,250.11,6.38499058]
[1737773465648,4.02668557,250.15,250.11,6.38499058]
[1737773473945,0.02888557,250.15,250.11,6.38499058]
[1737773474150,3.9972,250.19,250.14,3.9979]
[1737773475451,4.02660138,250.19,250.14,3.9979]
[1737773477653,0.02940138,250.19,250.17,6.38499058]
[1737773477845,6.38499058,250.25,250.17,6.38499058]
[1737773477846,3.9962,250.25,250.17,6.38499058]
[1737773478051,6.38499058,250.29,250.2,6.38499058]
[1737773478653,3.996,250.27,250.22,3.9966]
[1737773478957,0.02861921,250.27,250.24,6.38499058]
[1737773480157,0.02861921,250.27,250.24,10.38119058]
[1737773480559,26.10060982,250.3,250.26,6.38499058]
[1737773480560,22.10520982,250.3,250.26,6.38499058]
[1737773480755,7.36626786,250.3,250.29,6.38499058]
[1737773480960,5.27806786,250.3,250.29,6.38499058]
[1737773481160,5.54542281,250.41,250.29,6.38499058]
[1737773481353,5.54542281,250.41,250.34,6.38499058]
[1737773481655,0.02797899,250.4,250.36,6.38499058]
[1737773481855,9.53912281,250.41,250.36,6.38499058]
[1737773482062,5.57243881,250.41,250.36,10.37939058]
[1737773482253,5.57243881,250.41,250.38,6.38499058]
[1737773482653,5.57243881,250.41,250.4,6.38499058]
[1737773482856,5.57243881,250.41,250.4,10.37879058]
[1737773483760,5.27806786,250.42,250.4,10.37879058]
[1737773484262,6.786e-05,250.42,250.4,10.37879058]
[1737773485262,6.786e-05,250.42,250.4,6.38499058]
[1737773485563,6.41032452,250.44,250.36,198.38499058]
[1737773485762,7.67502452,250.44,250.36,192.0]
[1737773486462,3.9937,250.41,250.36,192.0]
[1737773486756,1.29003394,250.44,250.38,6.38499058]
[1737773487159,5.28323394,250.44,250.38,6.38499058]
[1737773487855,3.9933,250.43,250.38,6.38499058]
[1737773490864,3.9938,250.4,250.35,6.41535972]
[1737773491163,6.38499058,250.43,250.35,6.41535972]
[1737773491967,3.9939,250.39,250.35,6.41535972]
[1737773492268,6.38499058,250.4,250.35,0.03036914]
[1737773492561,3.9943,250.37,250.35,0.03036914]
[1737773492763,6.38499058,250.4,250.35,0.03036914]
[1737773492969,0.02744533,250.39,250.35,0.03036914]
[1737773493168,0.02744533,250.39,250.35,6.41535972]
[1737773499275,3.9943,250.37,250.35,6.41535972]
[1737773499479,3.9943,250.37,250.35,0.03036914]
[1737773503380,4.02144533,250.39,250.35,6.41535972]
[1737773506378,0.02744533,250.39,250.35,6.41535972]
[1737773506583,0.02744533,250.39,250.38,6.38499058]
[1737773509086,0.02744533,250.39,250.35,0.03036914]
[1737773510082,6.38499058,250.37,250.26,6.38499058]
[1737773510289,6.38499058,250.33,250.24,198.38499058]
[1737773510988,8.95429058,250.36,250.28,6.38499058]
[1737773511185,0.02673873,250.31,250.28,6.38499058]
[1737773511688,0.02673873,250.31,250.28,10.38059058]
[1737773511986,0.02673873,250.31,250.3,6.38499058]
[1737773518593,1.2647,250.44,250.3,6.38499058]
[1737773518787,1.2647,250.44,250.38,6.38499058]
[1737773519594,1.33481442,250.43,250.38,6.41159249]
[1737773520088,3.9936,250.41,250.38,6.41159249]
[1737773520692,1.33481442,250.43,250.38,0.02660191]
[1737773520892,6.38499058,250.42,250.34,6.38499058]
[1737773521096,6.38499058,250.39,250.31,6.38499058]
[1737773522093,3.9943,250.37,250.32,0.02873275]
[1737773522394,0.02813589,250.38,250.32,0.02873275]
[1737773524094,3.9944,250.37,250.32,0.02873275]
[1737773524297,0.02813589,250.38,250.32,0.02873275]
[1737773524794,3.9945,250.36,250.32,0.02873275]
[1737773524987,0.02813589,250.38,250.32,0.02873275]
[1737773527186,3.9944,250.36,250.32,0.02873275]
[1737773528192,3.9946,250.35,250.32,0.02873275]
[1737773528591,0.02813589,250.38,250.32,0.02873275]
[1737773529288,3.9947,250.34,250.32,0.02873275]
[1737773532099,3.9945,250.36,250.32,0.02873275]
[1737773533396,0.02813589,250.38,250.32,0.02873275]
[1737773533703,0.02813589,250.38,250.37,6.38499058]
[1737773535604,0.02813589,250.38,250.34,6.38499058]
[1737773537604,4.02223589,250.38,250.34,6.38499058]
[1737773539111,0.02813589,250.38,250.34,6.38499058]
[1737773539306,6.41312647,250.38,250.32,0.02873275]
[1737773539509,6.38499058,250.35,250.25,6.38499058]
[1737773539807,1.2566,250.34,250.25,6.38499058]
[1737773540011,6.38499058,250.32,250.22,6.38499058]
[1737773540709,0.02982314,250.3,250.24,0.02658627]
[1737773541205,0.02982314,250.3,250.25,6.38499058]
[1737773541505,0.02982314,250.3,250.28,6.38499058]
[1737773541704,8.13995459,250.48,250.29,9.95753013]
[1737773541705,1.3452,250.46,250.29,9.95753013]
[1737773541907,1.3452,250.46,250.28,192.0]
[1737773541908,2.7045,250.46,250.33,9.95753013]
[1737773542108,16.5672851,250.44,250.33,9.95753013]
[1737773542406,3.9936,250.41,250.34,3.9947]
[1737773543007,0.02530137,250.4,250.35,0.02965158]
[1737773546009,0.02530137,250.4,250.35,4.02415158]
[1737773549003,4.01910137,250.4,250.35,4.02415158]
[1737773549412,0.02530137,250.4,250.35,0.02965158]
[1737773551813,9.9828315,250.4,250.28,192.0]
[1737773552609,3.9951,250.32,250.28,192.0]
[1737773552814,9.95753013,250.4,250.31,0.02820655]
[1737773553010,0.02780908,250.33,250.21,9.95753013]
[1737773553410,0.02780908,250.33,250.24,0.02777645]
[1737773553916,4.02280908,250.33,250.25,3.9961]
[1737773554109,0.02780908,250.33,250.25,3.9961]
[1737773554516,0.02780908,250.33,250.24,0.02777645]
[1737773554714,3.9951,250.32,250.26,3.996]
[1737773556812,3.9952,250.31,250.24,4.02397645]
[1737773557014,3.9952,250.31,250.24,0.02777645]
[1737773557621,3.9953,250.31,250.24,0.02777645]
[1737773557813,0.02780908,250.33,250.24,0.02777645]
[1737773558720,3.9956,250.29,250.24,0.02777645]
[1737773561217,4.02280908,250.33,250.24,0.02777645]
[1737773561425,0.02780908,250.33,250.25,9.95753013]
[1737773562121,4.02280908,250.33,250.26,3.9959]
[1737773562323,0.02780908,250.33,250.26,3.9959]
[1737773563123,3.9951,250.32,250.26,3.9959]
[1737773564526,0.02780908,250.33,250.25,9.95753013]
[1737773565824,0.02780908,250.33,250.27,6.37651985]
[1737773566221,3.9952,250.32,250.27,6.37651985]
[1737773572322,0.02780908,250.33,250.27,6.37651985]
[1737773572627,0.02780908,250.33,250.28,3.9957]
[1737773572827,0.02780908,250.33,250.3,6.37651985]
[1737773573025,0.02780908,250.33,250.31,3.9952]
[1737773573428,0.02780908,250.33,250.3,6.37651985]
[1737773573829,0.02780908,250.33,250.32,3.995]
[1737773582925,0.02780908,250.33,250.32,10.37151985]
[1737773586729,0.02780908,250.33,250.32,6.37651985]
[1737773590738,0.02780908,250.33,250.32,10.37151985]
[1737773597137,0.02780908,250.33,250.32,6.37651985]
[1737773597739,6.37651985,250.46,250.32,6.37651985]
[1737773597934,6.37651985,250.46,250.38,6.37651985]
[1737773598939,0.02741103,250.45,250.39,0.02932968]
[1737773599138,3.9937,250.41,250.39,0.02932968]
[1737773601336,3.9938,250.4,250.39,0.02932968]
[1737773624660,3.9933,250.43,250.39,6.40584953]
[1737773625559,3.9938,250.4,250.39,0.02932968]
[1737773634666,3.9938,250.4,250.28,6.37651985]
[1737773634667,3.9952,250.31,250.28,6.37651985]
[1737773635270,3.995,250.33,250.28,6.37651985]
[1737773635567,6.37651985,250.37,250.28,6.37651985]
[1737773635768,3.9951,250.32,250.3,0.02527849]
[1737773639071,6.37651985,250.31,250.3,0.02527849]
[1737773639567,6.37651985,250.31,250.2,198.37651985]
[1737773639769,6.37651985,250.26,250.18,6.37651985]
[1737773639969,6.37651985,250.26,250.16,6.37651985]
[1737773640171,3.9968,250.21,250.16,6.37651985]
[1737773640568,4.02692515,250.21,250.18,6.37651985]
[1737773640867,3.997,250.2,250.16,6.40566656]
[1737773641270,3.9973,250.18,250.16,0.02914671]
[1737773643071,3.9973,250.18,250.16,6.40566656]
[1737773643667,3.9971,250.2,250.16,6.40566656]
[1737773643868,0.03012515,250.21,250.16,6.40566656]
[1737773645077,4.02702515,250.21,250.16,6.40566656]
[1737773645276,4.02702515,250.21,250.18,6.37651985]
[1737773646472,0.03012515,250.21,250.16,6.40566656]
[1737773647074,3.9972,250.19,250.16,0.02914671]
[1737773648177,3.9973,250.18,250.16,0.02914671]
[1737773650576,3.9973,250.18,250.16,6.40566656]
[1737773650771,3.997,250.2,250.16,6.40566656]
[1737773651076,0.03012515,250.21,250.16,6.40566656]
[1737773651472,3.9971,250.19,250.16,6.40566656]
[1737773653878,0.03012515,250.21,250.18,6.37651985]
[1737773654175,2.7347,250.3,250.2,6.37651985]
[1737773654375,3.9951,250.32,250.26,6.37651985]
[1737773654576,6.37651985,250.38,250.3,6.37651985]
[1737773655171,0.02809046,250.37,250.31,0.02563683]
[1737773655376,6.37651985,250.36,250.28,6.37651985]
[1737773655577,6.37651985,250.36,250.31,0.03072809]
[1737773656073,3.995,250.32,250.31,0.03072809]
[1737773659179,3.9959,250.27,250.24,6.37651985]
[1737773659375,3.9959,250.27,250.22,6.37651985]
[1737773660384,3.9962,250.25,250.22,6.40641266]
[1737773662280,3.9963,250.24,250.22,0.02989281]
[1737773663179,0.02524284,250.27,250.22,0.02989281]
[1737773663376,0.02524284,250.27,250.22,6.40641266]
[1737773665079,0.02524284,250.27,250.22,10.40301266]
[1737773665483,0.02524284,250.27,250.24,6.37651985]
[1737773665684,0.02524284,250.27,250.22,0.02989281]
[1737773667086,3.9963,250.24,250.22,0.02989281]
[1737773668583,10.37281985,250.24,250.22,0.02989281]
[1737773674384,6.37651985,250.24,250.22,0.02989281]
[1737773674687,3.9965,250.23,250.22,0.02989281]
[1737773675079,0.02524284,250.27,250.22,0.02989281]
[1737773676286,6.37651985,250.26,250.22,0.02989281]
[1737773677084,3.9965,250.23,250.22,0.02989281]
[1737773677889,3.9963,250.25,250.22,0.02989281]
[1737773679090,0.02524284,250.27,250.22,0.02989281]
[1737773680188,3.996,250.26,250.22,0.02989281]
[1737773680383,0.02524284,250.27,250.22,0.02989281]
[1737773680692,3.9962,250.25,250.22,0.02989281]
[1737773680881,0.02524284,250.27,250.22,0.02989281]
[1737773683097,6.37651985,250.24,250.22,0.02989281]
[1737773685097,3.9965,250.23,250.22,0.02989281]
[1737773689093,3.9974,250.18,250.12,3.91898019]
[1737773689493,6.37651985,250.2,250.12,3.91898019]
[1737773689791,6.37651985,250.14,250.03,6.37651985]
[1737773689998,6.37651985,250.12,250.03,6.37651985]
[1737773690195,3.9988,250.09,250.06,0.02885447]
[1737773690796,3.9989,250.08,250.06,0.02885447]
[1737773692799,0.02724315,250.11,250.07,6.37651985]
[1737773692995,0.02724315,250.11,250.1,6.37651985]
[1737773693491,0.02724315,250.11,250.06,6.40537432]
[1737773693693,0.02724315,250.11,250.06,0.02885447]
[1737773694096,3.999,250.08,250.06,0.02885447]
[1737773695900,3.9987,250.1,250.06,0.02885447]
[1737773696395,3.9987,250.1,250.06,6.40537432]
[1737773697993,0.02724315,250.11,250.06,6.40537432]
[1737773698998,0.02724315,250.11,250.08,6.37651985]
[1737773701301,0.02724315,250.11,250.06,0.02885447]
[1737773702197,4.02564315,250.11,250.06,6.40537432]
[1737773702400,0.02724315,250.11,250.06,6.40537432]
[1737773704099,3.9986,250.1,250.06,6.40537432]
[1737773704501,0.02724315,250.11,250.06,6.40537432]
[1737773704794,0.02724315,250.11,250.06,0.02885447]
[1737773705391,0.02724315,250.11,250.06,6.40537432]
[1737773705593,3.9988,250.09,250.06,6.40537432]
[1737773707704,0.02724315,250.11,250.06,6.40537432]
[1737773707901,0.02724315,250.11,250.1,6.37651985]
[1737773708596,2.776,250.21,250.1,6.37651985]
[1737773708793,2.776,250.21,250.14,6.37651985]
[1737773709600,3.9971,250.19,250.14,6.37651985]
[1737773709803,0.02736493,250.2,250.15,0.02860388]
[1737773710602,3.9975,250.17,250.15,0.02860388]
[1737773712705,10.37401985,250.17,250.15,0.02860388]
[1737773713608,3.9983,250.12,250.08,6.37651985]
[1737773714707,3.9985,250.11,250.08,6.37651985]
[1737773714901,0.03014549,250.13,250.08,6.37651985]
[1737773715303,3.9988,250.09,250.07,0.0302288]
[1737773717208,3.9986,250.1,250.07,0.0302288]
[1737773717800,3.9986,250.1,250.08,6.37651985]
[1737773719415,0.03014549,250.13,250.08,6.37651985]
[1737773719611,3.9983,250.12,250.08,6.37651985]
[1737773719910,0.03014549,250.13,250.08,6.37651985]
[1737773720210,3.9986,250.1,250.08,6.37651985]
[1737773721009,0.03014549,250.13,250.07,0.0302288]
[1737773721212,6.40666534,250.13,250.07,0.0302288]
[1737773721621,3.9984,250.12,250.07,0.0302288]
[1737773721817,6.40666534,250.13,250.07,0.0302288]
[1737773723111,3.9989,250.08,250.07,0.0302288]
[1737773729118,3.9986,250.1,250.07,0.0302288]
[1737773729317,3.9986,250.1,250.08,6.37651985]
[1737773729925,3.9983,250.12,250.08,6.37651985]
[1737773730620,3.9984,250.11,250.08,6.37651985]
[1737773731022,0.03014549,250.13,250.07,0.0302288]
[1737773731526,3.9989,250.08,250.07,0.0302288]
[1737773741535,0.03014549,250.13,250.07,0.0302288]
[1737773741832,0.03014549,250.13,250.12,6.37651985]
[1737773743634,0.03014549,250.13,250.11,9.97265499]
[1737773744938,2.6303,250.22,250.11,13.97095499]
[1737773745339,3.9975,250.17,250.11,13.97095499]
[1737773746043,4.02415986,250.17,250.11,13.99724337]
[1737773751148,3.9978,250.15,250.11,9.99894337]
[1737773751444,0.02665986,250.17,250.11,9.99894337]
[1737773751746,3.9977,250.16,250.11,9.99894337]
[1737773752043,0.02665986,250.17,250.11,9.99894337]
[1737773752346,3.9978,250.15,250.11,9.99894337]
[1737773752846,0.02665986,250.17,250.11,9.99894337]
[1737773753046,3.9979,250.14,250.11,9.99894337]
[1737773753744,3.9981,250.13,250.11,0.02628838]
[1737773758247,3.9982,250.12,250.11,0.02628838]
[1737773763857,3.9992,250.06,250.0,4.0]
[1737773764251,12.57265499,250.16,249.98,9.97265499]
[1737773764449,3.9995,250.04,249.98,13.97295499]
[1737773764953,4.02817651,250.04,249.98,14.00256205]
[1737773765352,0.02867651,250.04,249.98,10.00226205]
[1737773765749,0.02867651,250.04,250.02,6.38910971]
[1737773772056,0.02867651,250.04,250.03,3.9997]
[1737773773964,6.38910971,250.17,250.06,3.9991]
[1737773774164,6.38910971,250.17,250.09,6.38910971]
[1737773774955,3.9978,250.15,250.1,0.02822338]
[1737773775162,0.02655809,250.16,250.1,0.02822338]
[1737773776060,3.9984,250.12,250.1,0.02822338]
[1737773778165,0.02655809,250.16,250.1,0.02822338]
[1737773779170,3.9979,250.14,250.1,0.02822338]
[1737773786670,0.02655809,250.16,250.1,0.02822338]
[1737773786671,0.02655809,250.16,250.13,6.38910971]
[1737773787873,3.9977,250.15,250.13,6.38910971]
[1737773788275,0.02655809,250.16,250.1,6.41733309]
[1737773788474,3.9981,250.13,250.1,6.41733309]
[1737773795285,3.9983,250.12,250.1,6.41733309]
[1737773796883,0.02655809,250.16,250.1,6.41733309]
[1737773797088,3.9984,250.11,250.1,6.41733309]
[1737773797288,3.9984,250.11,250.1,0.02822338]
[1737773803789,3.9982,250.13,250.1,6.41733309]
[1737773804092,0.02655809,250.16,250.1,6.41733309]
[1737773804293,0.02655809,250.16,250.13,6.38910971]
[1737773805191,0.02655809,250.16,250.1,6.41733309]
[1737773806194,3.9983,250.12,250.1,0.02822338]
[1737773809397,3.9998,250.03,250.01,6.38910971]
[1737773812401,0.02623294,250.05,249.99,6.41749475]
[1737773812699,4.0001,250.0,249.99,6.41749475]
[1737773813799,0.02623294,250.05,249.99,6.41749475]
[1737773813994,0.02623294,250.05,250.02,6.38910971]
[1737773814191,0.02623294,250.05,249.99,0.02838504]
[1737773814391,6.38910971,250.04,249.99,0.02838504]
[1737773814901,4.0013,249.93,249.92,6.38910971]
[1737773815205,6.38910971,250.01,249.89,6.38910971]
[1737773815600,6.38910971,250.01,249.92,6.38910971]
[1737773815900,4.0008,249.96,249.94,0.02807372]
[1737773817004,4.0006,249.98,249.94,0.02807372]
[1737773817209,6.41863251,249.99,249.94,0.02807372]
[1737773818104,4.0009,249.95,249.94,0.02807372]
[1737773822507,10.39000971,249.95,249.94,0.02807372]
[1737773822907,4.0009,249.95,249.94,0.02807372]
[1737773826212,10.39000971,249.95,249.94,0.02807372]
[1737773829813,4.0009,249.95,249.94,0.02807372]
[1737773831314,4.0008,249.97,249.94,0.02807372]
[1737773831809,0.0295228,249.99,249.94,0.02807372]
[1737773832015,4.0299228,249.99,249.94,0.02807372]
[1737773833111,0.0295228,249.99,249.94,0.02807372]
[1737773833314,4.0005,249.98,249.94,0.02807372]
[1737773834819,4.0006,249.97,249.94,0.02807372]
[1737773836518,0.0295228,249.99,249.94,0.02807372]
[1737773837414,4.0009,249.95,249.94,0.02807372]
[1737773841717,6.38910971,249.98,249.94,0.02807372]
[1737773842021,4.0008,249.96,249.94,0.02807372]
[1737773842423,6.38910971,249.98,249.94,0.02807372]
[1737773842722,4.0009,249.95,249.94,0.02807372]
[1737773850629,4.0018,249.9,249.84,6.38910971]
[1737773851536,0.02649059,249.89,249.85,0.03033945]
[1737773851731,4.0024,249.86,249.85,0.03033945]
[1737773852635,4.0022,249.88,249.85,0.03033945]
[1737773853532,0.02649059,249.89,249.85,0.03033945]
[1737773855435,4.0022,249.88,249.85,0.03033945]
[1737773856841,4.0024,249.86,249.85,0.03033945]
[1737773859638,4.0029,249.83,249.78,6.38910971]
[1737773860043,6.38910971,249.85,249.78,6.38910971]
[1737773860340,4.0032,249.82,249.78,6.38910971]
[1737773860538,6.38910971,249.85,249.78,6.38910971]
[1737773860735,6.38910971,249.87,249.78,6.38910971]
[1737773860939,0.03033745,249.84,249.8,10.39240971]
[1737773861245,0.03033745,249.84,249.8,10.42160594]
[1737773861434,0.03033745,249.84,249.8,6.41830594]
[1737773861944,0.03033745,249.84,249.8,0.02919623]
[1737773862138,4.03303745,249.84,249.8,0.02919623]
[1737773862437,0.03033745,249.84,249.8,0.02919623]
[1737773863842,4.03303745,249.84,249.8,0.02919623]
[1737773866045,0.03033745,249.84,249.8,0.02919623]
[1737773866544,0.03033745,249.84,249.8,6.41830594]
[1737773868242,0.03033745,249.84,249.81,4.0032]
[1737773869447,0.03033745,249.84,249.8,6.41830594]
[1737773870041,0.03033745,249.84,249.8,10.42160594]
[1737773870241,0.03033745,249.84,249.8,6.41830594]
[1737773870946,4.03303745,249.84,249.8,0.02919623]
[1737773871344,0.03033745,249.84,249.8,0.02919623]
[1737773872350,4.0029,249.83,249.8,0.02919623]
[1737773872948,0.03033745,249.84,249.8,0.02919623]
[1737773873147,4.03303745,249.84,249.8,0.02919623]
[1737773874150,4.0029,249.83,249.8,0.02919623]
[1737773875450,4.0032,249.81,249.8,0.02919623]
[1737773876052,4.0032,249.81,249.74,9.68352466]
[1737773877053,4.0032,249.81,249.75,4.0041]
[1737773877253,4.0032,249.81,249.75,4.03145133]
[1737773877948,6.38910971,249.83,249.75,0.02735133]
[1737773878650,0.03033745,249.84,249.76,10.39300971]
[1737773878852,0.03033745,249.84,249.76,6.38910971]
[1737773879657,0.03033745,249.84,249.79,4.0035]
[1737773880458,0.03033745,249.84,249.81,4.0031]
[1737773881355,0.03033745,249.84,249.8,0.03054634]
[1737773882158,0.03033745,249.84,249.8,4.03384634]
[1737773883051,0.03033745,249.84,249.8,0.03054634]
[1737773883257,0.03033745,249.84,249.8,6.41965605]
[1737773884154,0.03033745,249.84,249.82,4.003]
[1737773885063,0.03033745,249.84,249.82,10.39210971]
[1737773885958,0.03033745,249.84,249.82,4.003]
[1737773886163,0.03033745,249.84,249.8,4.03374634]
[1737773887564,0.03033745,249.84,249.8,0.03054634]
[1737773890263,4.03303745,249.84,249.8,0.03054634]
[1737773891267,4.003,249.83,249.8,0.03054634]
[1737773891468,6.41944716,249.84,249.8,0.03054634]
[1737773892267,4.0029,249.83,249.8,0.03054634]
[1737773892469,6.41944716,249.84,249.8,0.03054634]
[1737773894170,4.0032,249.82,249.8,0.03054634]
[1737773896871,6.41944716,249.84,249.8,0.03054634]
[1737773896872,0.03033745,249.84,249.8,6.41965605]
[1737773897072,0.03033745,249.84,249.82,6.38910971]
[1737773897870,0.03033745,249.84,249.82,10.39210971]
[1737773900572,0.03033745,249.84,249.8,6.41965605]
[1737773900778,4.03303745,249.84,249.8,0.03054634]
[1737773900974,0.03033745,249.84,249.8,0.03054634]
[1737773901577,0.03033745,249.84,249.81,6.38910971]
[1737773902478,0.03033745,249.84,249.82,4.003]
[1737773907181,3.745e-05,249.84,249.82,4.003]
[1737773915685,3.745e-05,249.84,249.81,6.38910971]
[1737773915686,3.745e-05,249.84,249.83,4.0029]
[1737773915893,3.745e-05,249.84,249.81,6.38910971]
[1737773916190,3.745e-05,249.84,249.81,10.39210971]
[1737773917886,3.745e-05,249.84,249.81,6.38910971]
[1737773918183,3.745e-05,249.84,249.82,4.003]
[1737773919293,3.745e-05,249.84,249.81,6.38910971]
[1737773921785,3.745e-05,249.84,249.82,4.003]
[1737773929797,3.745e-05,249.84,249.81,6.38910971]
[1737773930998,4.00273745,249.84,249.81,6.38910971]
[1737773932897,3.745e-05,249.84,249.81,6.38910971]
[1737773934899,3.745e-05,249.84,249.81,10.39230971]
[1737773935301,3.745e-05,249.84,249.81,6.38910971]
[1737773937100,3.745e-05,249.84,249.83,6.38910971]
[1737773937301,2.626,249.95,249.83,6.38910971]
[1737773937504,2.626,249.95,249.93,4.0012]
[1737773937802,12.05798492,250.01,249.93,6.38910971]
[1737773937997,6.38910971,250.0,249.91,6.38910971]
[1737773938703,0.03049752,249.98,249.93,0.03004529]
[1737773938896,0.03049752,249.98,249.93,4.03124529]
[1737773939296,0.03049752,249.98,249.93,0.03004529]
[1737773941606,10.42020723,249.98,249.93,0.03004529]
[1737773943802,0.03049752,249.98,249.93,4.03124529]
[1737773944817,0.03049752,249.98,249.95,4.0009]
[1737773945017,0.03049752,249.98,249.93,6.419155]
[1737773945517,0.03049752,249.98,249.93,10.420255]
[1737773946017,0.03049752,249.98,249.93,0.03004529]
[1737773946212,0.03049752,249.98,249.93,6.419155]
[1737773947620,0.03049752,249.98,249.96,4.0008]
[1737773948015,0.03049752,249.98,249.97,6.38910971]
[1737773949321,9.752e-05,249.98,249.97,6.38910971]
[1737773952023,6.38910971,250.18,249.97,198.38910971]
[1737773952225,6.38910971,250.17,250.08,6.38910971]
[1737773953327,0.03030632,250.15,250.1,0.02831607]
[1737773954128,6.41941603,250.15,250.1,0.02831607]
[1737773954325,2.7636,250.14,250.1,0.02831607]
[1737773954526,3.9981,250.13,250.1,0.02831607]
[1737773954725,2.7636,250.14,250.1,0.02831607]
[1737773955229,6.7616,250.14,250.1,0.02831607]
[1737773956630,2.7636,250.14,250.1,0.02831607]
[1737773958523,9.15270971,250.14,250.1,0.02831607]
[1737773958728,3.9983,250.12,250.1,0.02831607]
[1737773962233,2.7636,250.14,250.1,0.02831607]
[1737773962433,10.50110971,250.14,250.05,6.38910971]
[1737773962732,6.38910971,250.11,250.02,6.38910971]
[1737773963531,3.9991,250.07,250.04,0.02702839]
[1737773965733,3.9991,250.07,250.04,6.4161381]
[1737773967333,0.02689178,250.09,250.04,6.4161381]
[1737773969237,0.02689178,250.09,250.08,6.38910971]
[1737773969534,6.38910971,250.21,250.08,6.38910971]
[1737773969830,10.38600971,250.21,250.12,6.38910971]
[1737773970131,6.38910971,250.23,250.14,6.38910971]
[1737773970637,0.03045466,250.21,250.16,0.02879899]
[1737773970836,0.03045466,250.21,250.16,6.4179087]
[1737773971034,0.03045466,250.21,250.18,6.38910971]
[1737773971230,0.03045466,250.21,250.2,6.38910971]